Cogmind - Beta 9.2 @@@ ROGUE MODE // 2019.11.15 @ 22:40:13 Player: Enzo Result: Self-destructed Performance ------------- Evolutions (1) 500 Regions Visited (2) 400 Robots Destroyed (11) 55 Value Destroyed (372) 372 Prototype IDs (0) 0 Alien Tech Used (0) 0 Bonus (0) 0 TOTAL SCORE: 1327 Bonus ------- None Cogmind --------- Core Integrity 300/400 Matter 265/300 Energy 91/100 System Corruption 0% Temperature Cool (0) Movement Core (300) Ox5 Location -9/Materials Parts ------- > --- POWER (1) -------- (None) > --- PROPULSION (2) --- (None) > --- UTILITY (4) ------ Improved Heat Sink Medium Storage Unit Signal Interpreter Medium Armor Plating > --- WEAPON (2) ------- (None) > --- INVENTORY (8) ---- Small Storage Unit Peak State ------------ > --- POWER ------------ Light Nuclear Core > --- PROPULSION ------- Aluminum Leg Aluminum Leg > --- UTILITY ---------- Small Storage Unit Sensor Array > --- WEAPON ----------- EM Pulse Gun Particle Gun > --- INVENTORY -------- Improved Heat Sink Signal Interpreter [Rating: 10] Favorites ----------- Power Light Nuclear Core Engine Ion Engine Power Core Light Nuclear Core Propulsion Aluminum Leg Leg Aluminum Leg Wheel Wheel Hover Unit Hover Unit Utility Sensor Array Device Sensor Array Storage Medium Storage Unit Processor Signal Interpreter Protection Medium Armor Plating Weapon EM Pulse Gun Energy Gun EM Pulse Gun Ballistic Gun Assault Rifle Build | -11 -10 -9 ------- Run | Scr Mat Mat Slots Evolved 2 | . . 2 Power . | . . . Propulsion . | . . . Utility 2 | . . 2 Weapon . | . . . Parts Attached 20 | 7 8 5 Power 3 | 1 2 . Engine 2 | 1 1 . Core 1 | . 1 . Reactor . | . . . Propulsion 6 | 2 2 2 Treads . | . . . Leg 2 | . 2 . Wheel 2 | 2 . . Hover 2 | . . 2 Flight . | . . . Utility 6 | 1 2 3 Device 2 | . 1 1 Storage 2 | 1 1 . Processor 1 | . . 1 Hackware . | . . . Protection 1 | . . 1 Artifact . | . . . Weapon 5 | 3 2 . Energy Gun 4 | 2 2 . Energy Cannon . | . . . Ballistic Gun 1 | 1 . . Ballistic Cannon . | . . . Launcher . | . . . Special Weapon . | . . . Impact Weapon . | . . . Slashing Weapon . | . . . Piercing Weapon . | . . . Special Melee Weapon . | . . . Unidentified Prototypes . | . . . Parts Lost 12 | . 9 3 Power 2 | . 1 1 Propulsion 5 | . 3 2 Utility 1 | . 1 . Weapon 4 | . 4 . Highest Loss Streak 4 | . 4 2 Average Slot Usage (%) 86 | . 91 63 Engine 5 | . 6 . Core 6 | . 6 7 Leg 12 | . 14 . Wheel 10 | . 11 . Hover 3 | . . 21 Device 9 | . 9 11 Storage 13 | . 14 11 Processor 1 | . . 10 Energy Gun 22 | . 26 . Naked Turns . | . . . Heaviest Build 19 | 11 19 16 Greatest Support 26 | 26 26 12 Greatest Overweight (x) 4 | . 4 2 Average Overweight (x) . | . . . Largest Inventory Capacity 8 | 6 8 8 Average Capacity 6 | 4 6 8 Most Carried 5 | . 5 5 Average Carried 1 | . 2 1 Final Capacity 8 | 6 8 8 Final Carried 5 | . 5 1 Class Distribution -------------------- 50% | Scavenger-Mutant 49% | Mutant Dominant Class ---------------- Mutant | -10/Materials Scavenger-Mutant | -9/Materials Resources | -11 -10 -9 ----------- Run | Scr Mat Mat Matter Collected 325 | 178 147 . Remotely . | . . . Salvage Created 419 | . 419 . Parts 27 | . 27 . Haulers Intercepted 1 | . 1 . Recyclers Shooed . | . . . Parts Field Recycled . | . . . Retrieved Matter . | . . . Parts Self-Destructed . | . . . Prevented . | . . . Kills | -11 -10 -9 ------- Run | Scr Mat Mat Combat Hostiles Destroyed 8 | . 8 . Guns 7 | . 7 . AOE 1 | . 1 . Classes Destroyed 4 | . 4 . Hauler 1 | . 1 . Operator 1 | . 1 . Watcher 1 | . 1 . Grunt 8 | . 8 . Best Kill Streak 4 | . 4 . Combat Bots Only 4 | . 4 . Max Kills in Single Turn 1 | . 1 . Gunslinging . | . . . Exploded 1 | . 1 . Melee . | . . . Uniques/NPCs Destroyed . | . . . Combat | -11 -10 -9 -------- Run | Scr Mat Mat Damage Taken 976 | . 678 298 Core 212 | . 112 100 Absorbed by Shields . | . . . Core Remaining (%) 77 | 100 55 . Volleys Fired 24 | . 24 . Largest 2 | . 2 . Hottest 105 | . 105 . Shots Fired 36 | . 36 . Gun 36 | . 36 . Cannon . | . . . Launcher . | . . . Special . | . . . Kinetic . | . . . Thermal 7 | . 7 . Explosive . | . . . Electromagnetic 29 | . 29 . Robot Hit Streak 6 | . 6 . Robot Miss Streak 3 | . 3 . Penetration Max . | . . . Secondary Targets 1 | . 1 . Max Gunslinging Chain 1 | . 1 . Shots Hit Robots 22 | . 22 . Core Hits 18 | . 18 . Critical Hits . | . . . Critical Kills . | . . . Critical Parts Destroyed . | . . . Melee Attacks . | . . . Impact . | . . . Slashing . | . . . Piercing . | . . . Sneak Attacks . | . . . Combat Hostiles . | . . . Follow-up Attacks . | . . . Damage Inflicted 536 | . 536 . Guns 335 | . 335 . Cannons . | . . . Explosions 201 | . 201 . Melee . | . . . Ramming . | . . . Kinetic . | . . . Thermal 247 | . 247 . Explosive . | . . . Electromagnetic 289 | . 289 . Impact . | . . . Slashing . | . . . Piercing . | . . . Highest Corruption 2 | . 2 . Average Corruption 2 | . 2 . Corruption Purged . | . . . Effects 1 | . 1 . Message Errors 1 | . 1 . Overload Shots . | . . . Overflow Damage 107 | . 107 . Projectiles . | . . . Explosions 107 | . 107 . Melee . | . . . Knockbacks . | . . . Impact . | . . . Kinetic . | . . . Secondary . | . . . Self-Inflicted Damage 218 | . 218 . Shots 4 | . 4 . Rammed . | . . . Targets Rammed . | . . . Kicked . | . . . Crushed . | . . . Highest Temperature 145 | . 145 . Average Temperature 52 | . 52 . Received Heat Transfer 396 | . 252 144 Siege Activations . | . . . Robots Corrupted . | . . . Combat Hostiles . | . . . Parts Fried 1 | . 1 . Impact Corruptions . | . . . Robots Melted . | . . . Combat Hostiles . | . . . Parts Melted . | . . . Heat Transferred 361 | . 361 . Parts Sabotaged . | . . . Parts Stolen . | . . . Parts Stripped . | . . . Power Chain Reactions 2 | . 2 . Missiles Intercepted . | . . . Alert | -11 -10 -9 ------- Run | Scr Mat Mat Peak Influence 197 | . 197 13 Average Influence 55 | . 70 8 Maximum Alert Level . | . . . Low Security (%) 100 | 100 100 100 Level 1 . | . . . Level 2 . | . . . Level 3 . | . . . Level 4 . | . . . Level 5 . | . . . High Security . | . . . Max Security . | . . . Squads Dispatched 2 | . 2 . Investigation 1 | . 1 . Extermination . | . . . Reinforcement 1 | . 1 . Assault . | . . . Garrison . | . . . Intercept . | . . . Construction Impeded . | . . . Haulers Reinforced . | . . . Stealth | -11 -10 -9 --------- Run | Scr Mat Mat Distress Signals . | . . . Communications Jammed . | . . . Distress Signals . | . . . Times Spotted 24 | . 15 9 Peak Tracking Total 9 | . 5 9 Tactical Retreats 1 | . 1 . Traps | -11 -10 -9 ------- Run | Scr Mat Mat Traps Triggered 1 | . 1 . Indirectly . | . . . Trap Hack Attempts . | . . . Triggered . | . . . Disarmed . | . . . Reprogrammed . | . . . Reused . | . . . Traps Extracted . | . . . Installed . | . . . Triggered . | . . . Machines | -11 -10 -9 ---------- Run | Scr Mat Mat Machines Disabled 4 | . 4 . Max in Single Turn 3 | . 3 . Machines Sabotaged . | . . . Garrisons Compromised . | . . . Overloaded Fab Kills . | . . . Fab Network Shutdowns . | . . . Hacking | -11 -10 -9 --------- Run | Scr Mat Mat Machines Accessed 1 | . 1 . Terminals 1 | . 1 . Fabricators . | . . . Repair Stations . | . . . Recycling Units . | . . . Scanalyzers . | . . . Garrison Access . | . . . Total Hacks 2 | . 2 . Successful 2 | . 2 . Failed . | . . . Catastrophic . | . . . Database Lockouts . | . . . Manual 1 | . 1 . Terminals 2 | . 2 . Fabricators . | . . . Repair Stations . | . . . Recycling Units . | . . . Scanalyzers . | . . . Garrison Access . | . . . Terminal Hacks 1 | . 1 . Terminal Index 1 | . 1 . Fabricator Hacks . | . . . Repair Station Hacks . | . . . Recycling Unit Hacks . | . . . Scanalyzer . | . . . Garrison Access Hacks . | . . . Unauthorized Hacks 2 | . 2 . Terminals 1 | . 1 . Botnet 1 | . 1 . Fabricators . | . . . Repair Stations . | . . . Recycling Units . | . . . Scanalyzers . | . . . Garrison Access . | . . . Data Cores Recovered . | . . . Used . | . . . Hacking Detections 1 | . 1 . Full Trace Events . | . . . Feedback Events . | . . . Feedback Blocked . | . . . Robot Schematics Acquired . | . . . Robots Built . | . . . Matter . | . . . Time . | . . . Total Robot Build Rating . | . . . Part Schematics Acquired . | . . . Parts Built . | . . . Matter . | . . . Time . | . . . Total Part Build Rating . | . . . Parts Repaired . | . . . Time . | . . . Parts Recycled . | . . . Recycled Matter . | . . . Retrieved Matter . | . . . Retrieved Components . | . . . Parts Scanalyzed . | . . . Part Schematics Acquired . | . . . Parts Damaged . | . . . Bothacking | -11 -10 -9 ------------ Run | Scr Mat Mat Used RIF Installer . | . . . Robots Hacked . | . . . Non-combat . | . . . Combat . | . . . Robot Hacks Applied . | . . . Relay Couplers Released . | . . . Robots Rewired . | . . . Allies Hacked . | . . . Hacks Repelled . | . . . Allies | -11 -10 -9 -------- Run | Scr Mat Mat Total Allies . | . . . Largest Group . | . . . Highest-Rated Group . | . . . Highest-Rated Ally . | . . . Total Orders . | . . . Ally Attacks . | . . . Total Damage . | . . . Kills . | . . . Allies Corrupted . | . . . Allies Melted . | . . . Intel | -11 -10 -9 ------- Run | Scr Mat Mat Robot Analysis Total . | . . . Derelict Logs Recovered . | . . . Drone Launches . | . . . Drone Recoveries . | . . . Exploration | -11 -10 -9 ------------- Run | Scr Mat Mat Turns Passed 755 | 58 587 110 Spaces Moved 481 | 55 339 87 Core 15 | 5 10 . Treads . | . . . Legs 126 | . 126 . Wheels 253 | 50 203 . Hover 87 | . . 87 Flight . | . . . Fastest Speed 50 | 50 90 56 Average Speed 103 | 86 105 103 Slowest Speed 250 | 90 250 180 Overloaded Moves . | . . . Propulsion Burnouts . | . . . Robots Hopped . | . . . Cave-ins Triggered . | . . . Exploration Rate (%) 15 | 3 34 9 Regions Visited 2 Branch Regions . Pre-discovered Areas . | . . . Known Exits Taken . | . . . Unknown Exits Taken 2 | 1 1 . Scrap Searched . | . . . Spaces Dug . | . . . Terrain Destroyed 29 | . 29 . Melee . | . . . Projectile . | . . . AOE 29 | . 29 . Actions | -11 -10 -9 --------- Run | Scr Mat Mat Total 696 | 62 528 106 Wait 164 | . 151 13 Move 479 | 54 338 87 Hop . | . . . Pick Up 5 | . 5 . Fast Attach 15 | 7 7 1 Attach 5 | . 1 4 Detach 1 | . 1 . Swap . | . . . Drop 3 | 1 1 1 Fire 24 | . 24 . Melee . | . . . Ram . | . . . Kick . | . . . Crush . | . . . Escape Stasis . | . . . Rewire . | . . . Trap . | . . . Miscellaneous . | . . . Route ------- -11/Scrapyard -10/Materials -9/Materials History --------- Turn | Location | Event 25 | -11/Scrapyard | Discovered new exit (range 16) 59 | -11/Scrapyard | Entered Materials 303 | -10/Materials | Build established: Mutant 335 | -10/Materials | Lost 4 parts (2n2w) 603 | -10/Materials | Discovered new exit (range 15) 646 | -10/Materials | Entered another Materials area 646 | -9/Materials | Evolved 2 slots: Utility x2 674 | -9/Materials | Lost 4 parts (1n1u2w) 756 | -9/Materials | Self-destructed Last Messages --------------- 00630_ K-01 Serf collects debris. 00632_ G-34 Mercenary destroyed. 00633_ K-01 Serf collects debris. 00634_ R-06 Scavenger collects Aluminum Leg. 00634_ K-01 Serf cleans the Fusion Modulator. 00635_ EM Pulse Gun destroyed. 00637_ U-05 Engineer lays Concrete. 00642_ K-01 Serf collects debris. 00643_ Aluminum Leg destroyed. PARAMETERS=UTILITY_2 LOCATION=UNKNOWN GOAL=ESCAPE 00646_ Dropped Aluminum Leg. 00713_ Lgt. Nuclear Core destroyed. 00725_ Acquired Med. Armor Plating. 00744_ K-01 Serf collects debris. 00747_ Hover Unit destroyed. 00751_ K-01 Serf collects debris. 00754_ Hover Unit destroyed. 00756_ K-01 Serf collects debris. Map ----- +----------------------------------------------------+ | ?????????????????????????????????????????????????? | | ?????????????????????????????????????????????????? | | ?????????????????????????????????????????????????? | | ?????????????????????????????????????????????????? | | ?????????????????????????????????????????????????? | | ?????????????????????????????????????????????????? | | ?????????????????????????????????????????????????? | | ?????????????????????????????????????????????????? | | ?????????????????????????????????????????????????? | | ?????????????????????????????????????????????????? | | ?????????????????????????????????????????????????? | | ?????????????????????????????????????????????????? | | ?????????????????????????????????????????????????? | | ?????????????????????????????????????????????????? | | ?????????????????????????????????????????????????? | | ??????????????????????????????+??????????????????? | | ?????????????????????????????? ??????????????????? | | ?????????????????????????????# #?????????????????? | | ??????????????????????######## #?????????????????? | | ??????????????????????# """ # #?????????????????? | | ??????????????????????# """ # #?????????????????? | | ??????????????????????# """ # ?????????????????? | | ??????????????????????# # #?????????????????? | | ??????????????????????# # #??#######????????? | | ??????????????????????? ?# ## #??????? | | ????????????????#########@#### ## """ """ #??????? | | ??????????? l # "R """ #??????? | | ??????????? g g # """ """ #??????? | | ??????????? g # "" """ #??????? | | ???????????? # """ #??????? | | ???????????? a g # #??????? | | ?????????????## a##########g # #??????? | | ??????????????# ?# # #####+#########??? | | ??????????????# ??#! """"" # # #??? | | ??????????????# ???# """"" + k # """ #??? | | ??????????????#????# """"" # # """ #??? | | ???????????????????# """"" # #### + """ #??? | | ???????????????????# """"" # #??# # """ #??? | | ???????????????????# """"" # #??# # #??? | | ???????????????????# """"" # #??# ########??? | | ???????????????????# # #??# #?????? | | ???????????????????########## #??# = #?????? | | ????????????????????????????# #??# #?????? | | ????????????????????????????# #??#########?????? | | ????????????????????????????# #????????????????? | | ????????????????????????????# #????????????????? | | ????????????????????????????# +????????????????? | | ???????????????????????????? #????????????????? | | ???????????????????????????? #????????????????? | | ????????????????????????????? ?????????????????? | +----------------------------------------------------+ Best States ------------- Heat Dissipation 42 Energy Generation 14 Energy Capacity 250 Matter Stores 300 Matter Capacity 300 Sight Range 16 Robot Scan Range 10 Terrain Scan Density 10 Armor Coverage 225 Evasion (%) 53 Item Schematics ----------------- None Robot Schematics ------------------ None Fabricated ------------ Nothing Alien Tech Used ----------------- None Achievements -------------- None Challenges ------------ None Game ------ Seed BeamCryofiberSplitter Manual? 0 Play Time 00:06:09 Cumulative 9.8 hours Start 2019.11.15 @ 22:34:54 End 2019.11.15 @ 22:40:13 Sessions 1 Manual Loads 0 Difficulty Rogue Special Mode None Game No. 24 Rogue 24 Adventurer 0 Explorer 0 Win Type - Total 0 Types 0/0/0/0/0/0/0 Lore% 29 Gallery% 24 Achievement% 23 Wizard Run 0 Options --------- ASCII 0 Keyboard 0 Movement Numpad Keybinds 0 Fullscreen 2 Font 24/Smallcaps Map View 76x50 Tactical HUD 1 Map Filters NONE Filters NONE Steam 1 RUN: 89070b0a-3dcc-49e1-b020-cb3861c6b35c